bitfinex-derivatives/quotes_BTCF0:USTF0_20250426
["timestamp","ask_amount","ask_price","bid_price","bid_amount"]
[1745692009317,0.3345,94398.0,94397.0,0.83539712]
[1745692009919,0.3345,94398.0,94397.0,0.83540867]
[1745692013428,0.3345,94398.0,94397.0,0.83526147]
[1745692018741,0.3345,94398.0,94397.0,0.81923897]
[1745692018935,0.3345,94398.0,94397.0,0.83535258]
[1745692023745,0.3345,94398.0,94397.0,0.47455258]
[1745692024048,0.3345,94398.0,94397.0,0.83535258]
[1745692027933,0.3345,94398.0,94397.0,0.83544922]
[1745692031736,0.3345,94398.0,94397.0,0.47464922]
[1745692032140,0.3345,94398.0,94397.0,0.83544922]
[1745692035948,0.3345,94398.0,94397.0,0.83538177]
[1745692037242,0.27,94398.0,94397.0,0.83538177]
[1745692038243,0.27,94398.0,94397.0,1.00338177]
[1745692038441,0.1,94400.0,94399.0,0.2117988]
[1745692038645,0.13,94400.0,94399.0,0.3679416]
[1745692038846,0.13,94400.0,94399.0,0.42413392]
[1745692039040,0.13,94400.0,94399.0,0.48603392]
[1745692039239,0.13,94400.0,94399.0,0.65403392]
[1745692039440,0.03,94400.0,94399.0,0.65403392]
[1745692039645,0.03,94400.0,94399.0,0.5978416]
[1745692040552,0.0908,94414.0,94413.0,0.2117674]
[1745692040747,0.3608,94414.0,94413.0,0.4327902]
[1745692042156,0.5288,94414.0,94413.0,0.4327902]
[1745692042955,0.5288,94414.0,94413.0,0.43254528]
[1745692045646,0.5288,94414.0,94413.0,0.4166474]
[1745692053658,0.5288,94414.0,94413.0,0.432437]
[1745692054053,0.5288,94414.0,94413.0,0.4166474]
[1745692054249,0.5288,94414.0,94413.0,0.432437]
[1745692055657,0.5288,94414.0,94413.0,0.43244589]
[1745692057260,0.5288,94414.0,94413.0,0.4325088]
[1745692059661,0.5288,94414.0,94413.0,0.4166474]
[1745692059959,0.5288,94414.0,94413.0,0.20488]
[1745692060162,0.2117831,94406.0,94405.0,0.06488]
[1745692060366,0.8125831,94406.0,94405.0,0.11488]
[1745692060555,0.9185111,94406.0,94405.0,0.06488]
[1745692061054,1.0125111,94406.0,94405.0,0.06488]
[1745692061254,1.1805111,94406.0,94405.0,0.06488]
[1745692063076,0.2117876,94405.0,94404.0,0.2117871]
[1745692063256,0.4617876,94405.0,94404.0,0.2117871]
[1745692063458,0.6326156,94405.0,94404.0,0.2117871]
[1745692064265,0.6946876,94405.0,94404.0,0.2117871]
[1745692070067,0.2117876,94404.0,94403.0,0.0329]
[1745692070264,0.4617876,94404.0,94403.0,0.0329]
[1745692070463,0.5245876,94404.0,94403.0,0.0329]
[1745692071768,0.5245876,94404.0,94403.0,0.2446898]
[1745692073466,0.3128,94404.0,94403.0,0.2446898]
[1745692073868,0.5245876,94404.0,94403.0,0.2446898]
[1745692081172,0.6925876,94404.0,94403.0,0.2446898]
[1745692082171,0.5245876,94404.0,94403.0,0.2446898]
[1745692088177,0.6925876,94404.0,94403.0,0.2446898]
[1745692090180,0.5245876,94404.0,94403.0,0.2446898]
[1745692090775,0.5245876,94404.0,94403.0,0.26036569]
[1745692092176,0.5245876,94404.0,94403.0,0.26035691]
[1745692093974,0.5245876,94404.0,94403.0,0.26038485]
[1745692095681,0.5245876,94404.0,94403.0,0.26038229]
[1745692095874,0.5245876,94404.0,94403.0,0.2446898]
[1745692097781,0.5245876,94404.0,94403.0,0.2604046]
[1745692098881,0.5245876,94404.0,94403.0,0.2446898]
[1745692100593,0.211801,94398.0,94397.0,0.00807567]
[1745692100783,0.21181,94394.0,94393.0,0.0313]
[1745692100975,0.46181,94394.0,94393.0,0.0313]
[1745692101170,0.62981,94394.0,94393.0,0.0313]
[1745692101672,0.69201,94394.0,94393.0,0.0313]
[1745692102275,0.52401,94394.0,94393.0,0.0323]
[1745692103877,0.52401,94394.0,94393.0,0.0423]
[1745692104480,0.52401,94394.0,94393.0,0.0413]
[1745692105075,0.52401,94394.0,94393.0,0.0494102]
[1745692112289,0.52401,94394.0,94393.0,0.0826102]
[1745692113290,0.88481,94394.0,94393.0,0.0826102]
[1745692118788,0.88481,94394.0,94393.0,0.2944225]
[1745692122395,0.88481,94394.0,94393.0,0.0826102]
[1745692126396,0.52401,94394.0,94393.0,0.0826102]
[1745692126599,0.88481,94394.0,94393.0,0.0826102]
[1745692128001,0.52401,94394.0,94393.0,0.0826102]
[1745692128206,0.88481,94394.0,94393.0,0.0826102]
[1745692129705,0.88481,94394.0,94393.0,0.0494102]
[1745692134901,0.52401,94394.0,94393.0,0.0494102]
[1745692135094,0.88481,94394.0,94393.0,0.0494102]
[1745692138299,0.88481,94394.0,94393.0,0.0394102]
[1745692141210,0.52401,94394.0,94393.0,0.0394102]
[1745692141509,0.88481,94394.0,94393.0,0.0394102]
[1745692143311,0.52401,94394.0,94393.0,0.0394102]
[1745692143510,0.88481,94394.0,94393.0,0.0394102]
[1745692145911,0.52401,94394.0,94393.0,0.0394102]
[1745692146213,0.88481,94394.0,94393.0,0.0394102]
[1745692149908,0.52401,94394.0,94393.0,0.0394102]
[1745692150209,0.88481,94394.0,94393.0,0.0394102]
[1745692156516,0.52401,94394.0,94393.0,0.0394102]
[1745692156708,0.88481,94394.0,94393.0,0.0394102]
[1745692160513,0.85461,94394.0,94393.0,0.0394102]
[1745692160917,0.85461,94394.0,94393.0,0.0712102]
[1745692161320,0.82261,94394.0,94393.0,0.2830225]
[1745692161517,0.46181,94394.0,94393.0,0.2830225]
[1745692161918,0.46181,94394.0,94393.0,0.3030225]
[1745692162119,0.46181,94394.0,94393.0,0.4710225]
[1745692162318,0.46181,94394.0,94393.0,0.48707199]
[1745692164420,0.46181,94394.0,94393.0,0.48720253]
[1745692170428,0.25,94394.0,94393.0,0.48720253]
[1745692170930,0.25,94394.0,94393.0,0.48714657]
[1745692171127,0.46181,94394.0,94393.0,0.48714657]
[1745692171528,0.46181,94394.0,94393.0,0.48716554]
[1745692173331,0.25,94394.0,94393.0,0.48716554]
[1745692174529,0.25,94394.0,94393.0,0.48712442]
[1745692174725,0.46181,94394.0,94393.0,0.48712442]
[1745692176834,0.46181,94394.0,94393.0,0.48714252]
[1745692178527,0.46181,94394.0,94393.0,0.48712073]
[1745692180734,0.52721,94394.0,94393.0,0.48712073]
[1745692181239,0.52721,94394.0,94393.0,0.24350843]
[1745692181431,0.92801,94394.0,94393.0,0.24220843]
[1745692181634,0.92801,94394.0,94393.0,0.2261102]
[1745692182225,0.92801,94394.0,94393.0,0.0581102]
[1745692182431,0.92801,94394.0,94393.0,0.2699225]
[1745692183737,0.92801,94394.0,94393.0,0.0581102]
[1745692185436,0.92801,94394.0,94393.0,0.2699225]
[1745692189343,0.92801,94394.0,94393.0,0.0581102]
[1745692190138,0.56721,94394.0,94393.0,0.0581102]
[1745692190336,0.92801,94394.0,94393.0,0.0581102]
[1745692190944,0.92801,94394.0,94393.0,0.2699225]
[1745692193443,0.56721,94394.0,94393.0,0.2699225]
[1745692193639,0.92801,94394.0,94393.0,0.2699225]
[1745692197737,0.56721,94394.0,94393.0,0.2699225]
[1745692198046,0.92801,94394.0,94393.0,0.2699225]
[1745692203543,0.56721,94394.0,94393.0,0.2699225]
[1745692203742,0.92801,94394.0,94393.0,0.2699225]
[1745692205042,0.92801,94394.0,94393.0,0.0581102]
[1745692205744,0.92801,94394.0,94393.0,0.0887102]
[1745692210754,0.92801,94394.0,94393.0,0.0581102]
[1745692210947,0.92801,94394.0,94393.0,0.0081102]
[1745692211147,0.2118235,94388.0,94387.0,0.0321]
[1745692211338,0.5018235,94388.0,94387.0,0.0721]
[1745692211946,0.5660235,94388.0,94387.0,0.0721]
[1745692212145,0.5660235,94388.0,94387.0,0.0731]
[1745692212951,0.5660235,94388.0,94387.0,0.08117819]
[1745692213954,0.5660235,94388.0,94387.0,0.04807819]
[1745692214150,0.7340235,94388.0,94387.0,0.04807819]
[1745692227253,0.5660235,94388.0,94387.0,0.04807819]
[1745692227657,0.9268235,94388.0,94387.0,0.00807819]
[1745692227860,0.2118347,94383.0,94382.0,0.033]
[1745692228060,0.4718347,94383.0,94382.0,0.063]
[1745692228655,0.5349347,94383.0,94382.0,0.063]
[1745692230563,0.5349347,94383.0,94382.0,0.07113562]
[1745692232164,0.7029347,94383.0,94382.0,0.07113562]
[1745692233166,0.5349347,94383.0,94382.0,0.07113562]
[1745692249579,0.4718347,94383.0,94382.0,0.07113562]
[1745692249976,0.4718347,94383.0,94382.0,0.28297252]
[1745692251173,0.4718347,94383.0,94382.0,0.45097252]
[1745692252084,0.4718347,94383.0,94382.0,0.4668898]
[1745692253782,0.4718347,94383.0,94382.0,0.46694175]
[1745692254283,0.4718347,94383.0,94382.0,0.4669034]
[1745692259583,0.4718347,94383.0,94382.0,0.46693662]
[1745692260283,0.4718347,94383.0,94382.0,0.57288862]
[1745692260284,0.11192434,94383.0,94382.0,0.57288862]
[1745692260485,0.32375904,94383.0,94382.0,0.57288862]
[1745692260985,0.32375904,94383.0,94382.0,0.57294568]
[1745692264288,0.32375904,94383.0,94382.0,0.57290055]
[1745692264984,0.32375904,94383.0,94382.0,0.46694855]
[1745692270393,0.35595904,94383.0,94382.0,0.46694855]
[1745692271293,0.35595904,94383.0,94382.0,0.46687637]
[1745692273095,0.35595904,94383.0,94382.0,0.29890881]
[1745692275605,0.35595904,94383.0,94382.0,0.28297252]
[1745692281015,0.35595904,94383.0,94382.0,0.29886326]
[1745692282003,0.35595904,94383.0,94382.0,0.29882054]
[1745692283418,0.35595904,94383.0,94382.0,0.298836]
[1745692284509,0.35595904,94383.0,94382.0,0.29883715]
[1745692287308,0.35595904,94383.0,94382.0,0.29883456]
[1745692288120,0.35595904,94383.0,94382.0,0.46683456]
[1745692289219,0.35595904,94383.0,94382.0,0.29883456]
[1745692291423,0.35595904,94383.0,94382.0,0.29891585]
[1745692292622,0.35595904,94383.0,94382.0,0.29890684]
[1745692293123,0.35595904,94383.0,94382.0,0.46690684]
[1745692294425,0.35595904,94383.0,94382.0,0.46701013]
[1745692296822,0.35595904,94383.0,94382.0,0.46692935]
[1745692297325,0.35595904,94383.0,94382.0,0.46692802]
[1745692298625,0.35595904,94383.0,94382.0,0.46701255]
[1745692302329,0.35595904,94383.0,94382.0,0.46692994]
[1745692303224,0.35595904,94383.0,94382.0,0.29892994]
[1745692303425,0.35595904,94383.0,94382.0,0.29893514]
[1745692303931,0.35595904,94383.0,94382.0,0.33163514]
[1745692304124,0.35595904,94383.0,94382.0,0.49963514]
[1745692306626,0.32375904,94383.0,94382.0,0.49963514]
[1745692307738,0.35625904,94383.0,94382.0,0.49963514]
[1745692308138,0.32375904,94383.0,94382.0,0.49963514]
[1745692312737,0.32375904,94383.0,94382.0,0.49970651]
[1745692314935,0.35645904,94383.0,94382.0,0.49970651]
[1745692319841,0.35645904,94383.0,94382.0,0.49975515]
[1745692321344,0.35645904,94383.0,94382.0,0.49971924]
[1745692322442,0.35645904,94383.0,94382.0,0.46701924]
[1745692324441,0.35645904,94383.0,94382.0,0.45097252]
[1745692324640,0.35645904,94383.0,94382.0,0.46700213]
[1745692331755,0.35645904,94383.0,94382.0,0.46699611]
[1745692340662,0.35645904,94383.0,94382.0,0.46699495]
[1745692342064,0.11192434,94383.0,94382.0,0.49889495]
[1745692342265,0.3608,94402.0,94400.0,0.2117966]
[1745692342266,0.0529487,94401.0,94400.0,0.2117966]
[1745692342459,0.2647365,94405.0,94402.0,0.0529476]
[1745692342762,0.3272222,94409.0,94408.0,0.2117786]
[1745692343059,0.5242781,94409.0,94408.0,0.29815639]
[1745692343264,0.5242781,94409.0,94408.0,0.46615639]
[1745692343667,0.25,94409.0,94408.0,0.46615639]
[1745692344169,0.4617764,94409.0,94408.0,0.29811608]
[1745692344759,0.4617764,94409.0,94408.0,0.29802409]
[1745692345260,0.4939764,94409.0,94408.0,0.29802409]
[1745692346059,0.4939764,94409.0,94408.0,0.46602409]
[1745692346971,0.4939764,94409.0,94408.0,0.4497786]
[1745692352176,0.4939764,94409.0,94408.0,0.2817786]
[1745692352673,0.5239764,94409.0,94408.0,0.2817786]
[1745692363592,0.5239764,94409.0,94397.0,0.0642]
[1745692363777,0.572601,94398.0,94397.0,0.14]
[1745692363974,0.842601,94398.0,94397.0,0.14]
[1745692364183,1.010601,94398.0,94397.0,0.14]
[1745692364575,1.073401,94398.0,94397.0,0.14]
[1745692365177,0.905401,94398.0,94397.0,0.14]
[1745692369081,1.073401,94398.0,94397.0,0.14]
[1745692369686,0.712601,94398.0,94397.0,0.14]
[1745692369891,1.073401,94398.0,94397.0,0.14]
[1745692371192,0.905401,94398.0,94397.0,0.14]
[1745692375492,0.544601,94398.0,94397.0,0.14]
[1745692375693,0.905401,94398.0,94397.0,0.14]
[1745692376087,0.544601,94398.0,94397.0,0.14]
[1745692376292,0.905401,94398.0,94397.0,0.14]
[1745692389400,0.905401,94398.0,94384.0,0.0642]
[1745692389401,0.2118302,94385.0,94384.0,0.0642]
[1745692389600,0.8126302,94385.0,94384.0,0.1842]
[1745692389802,0.9068302,94385.0,94384.0,0.1842]
[1745692393502,0.9068302,94385.0,94384.0,0.217]
[1745692396006,0.8767302,94385.0,94384.0,0.217]
[1745692396196,0.8767302,94385.0,94384.0,0.385]
[1745692396399,0.8440302,94385.0,94384.0,0.385]
[1745692396610,0.8440302,94385.0,94384.0,0.3208]
[1745692399610,0.8440302,94385.0,94384.0,0.33715789]
[1745692400606,0.8440302,94385.0,94384.0,0.3208]
[1745692401306,0.8440302,94385.0,94384.0,0.33714424]
[1745692404598,0.4832302,94385.0,94384.0,0.33706848]
[1745692406403,0.4832302,94385.0,94384.0,0.3208]
[1745692410705,0.4832302,94385.0,94384.0,0.3511]
[1745692413615,0.4832302,94385.0,94384.0,0.3674304]
[1745692417017,0.4832302,94385.0,94384.0,0.3511]
[1745692417223,0.4832302,94385.0,94384.0,0.36744589]
[1745692418823,0.4832302,94385.0,94384.0,0.36748965]
[1745692419516,0.5145302,94385.0,94384.0,0.36748965]
[1745692420229,0.5145302,94385.0,94384.0,0.36748958]
[1745692420818,0.5145302,94385.0,94384.0,0.36745389]
[1745692421524,0.4518302,94385.0,94384.0,0.57926559]
[1745692422118,0.4845302,94385.0,94384.0,0.57926559]
[1745692424211,0.4845302,94385.0,94384.0,0.57946863]
[1745692427021,0.5148302,94385.0,94384.0,0.57946863]
[1745692433131,0.5148302,94385.0,94384.0,0.57934835]
[1745692434425,0.5148302,94385.0,94384.0,0.5629117]
[1745692434631,0.5148302,94385.0,94384.0,0.57935653]
[1745692434824,0.5148302,94385.0,94384.0,0.5629117]
[1745692435026,0.5148302,94385.0,94384.0,0.57943413]
[1745692436633,0.5148302,94385.0,94384.0,0.57946862]
[1745692438128,0.4845302,94385.0,94384.0,0.57946862]
[1745692438334,0.24,94385.0,94384.0,0.57946862]
[1745692440535,0.24,94385.0,94384.0,0.57946795]
[1745692441527,0.24,94385.0,94384.0,0.5794679]
[1745692443138,0.24,94385.0,94384.0,0.57946786]
[1745692448441,0.24,94385.0,94384.0,0.57946788]
[1745692448632,0.0314,94393.0,94392.0,0.2117933]
[1745692448833,0.1714,94393.0,94392.0,0.38834948]
[1745692449332,0.1714,94393.0,94392.0,0.55634948]
[1745692449531,0.1714,94393.0,94392.0,0.58924948]
[1745692449833,0.3831911,94393.0,94392.0,0.58924948]
[1745692450037,0.3831911,94393.0,94392.0,0.61924948]
[1745692450234,0.3831911,94393.0,94392.0,0.61924937]
[1745692451145,0.3831911,94393.0,94392.0,0.58634937]
[1745692452040,0.3831911,94393.0,94392.0,0.58634928]
[1745692457241,0.3831911,94393.0,94392.0,0.5697933]
[1745692457450,0.3831911,94393.0,94392.0,0.58634928]
[1745692462646,0.3831911,94393.0,94392.0,0.58634915]
[1745692462847,0.3831911,94393.0,94392.0,0.55634915]
[1745692466053,0.3831911,94393.0,94392.0,0.62050915]
[1745692475159,0.3831911,94393.0,94392.0,0.62050921]
[1745692475863,0.3831911,94393.0,94392.0,0.68540921]
[1745692476067,0.3831911,94393.0,94392.0,0.68540913]
[1745692476868,0.1714,94393.0,94392.0,0.68540913]
[1745692477463,0.2032,94393.0,94392.0,0.68540913]
[1745692477967,0.4149911,94393.0,94392.0,0.68540913]
[1745692480467,0.4149911,94393.0,94392.0,0.68540891]
[1745692482272,0.4149911,94393.0,94392.0,0.68540895]
[1745692483968,0.4149911,94393.0,94392.0,0.68540894]
[1745692486084,0.4149911,94393.0,94392.0,0.6688533]
[1745692486385,0.4149911,94393.0,94392.0,0.68540893]
[1745692492991,0.4149911,94393.0,94392.0,0.68540895]
[1745692496495,0.4149911,94393.0,94392.0,0.68540868]
[1745692497994,0.4149911,94393.0,94392.0,0.68540871]
[1745692499986,0.4149911,94393.0,94392.0,0.6688533]
[1745692500186,0.4149911,94393.0,94392.0,0.68540871]
[1745692501395,0.4149911,94393.0,94392.0,0.68540915]
[1745692503795,0.4149911,94393.0,94392.0,0.65330915]
[1745692506593,0.4149911,94393.0,94392.0,0.65330917]
[1745692510200,0.2749911,94393.0,94392.0,0.18455587]
[1745692510495,0.5449911,94393.0,94392.0,0.31455587]
[1745692510998,0.5449911,94393.0,94392.0,0.298]
[1745692511200,0.7129911,94393.0,94392.0,0.13]
[1745692512407,0.5449911,94393.0,94392.0,0.13]
[1745692520905,0.5449911,94393.0,94392.0,0.14655743]
[1745692521110,0.5449911,94393.0,94392.0,0.13]
[1745692521303,0.5449911,94393.0,94392.0,0.14655754]
[1745692521910,0.5449911,94393.0,94392.0,0.13]
[1745692526618,0.9057911,94393.0,94392.0,0.13]
[1745692541052,0.9057911,94393.0,94392.0,0.20935782]
[1745692542039,0.9057911,94393.0,94392.0,0.20935756]
[1745692543451,0.9057911,94393.0,94392.0,0.1928]
[1745692544040,0.9057911,94393.0,94392.0,0.20935782]
[1745692544953,0.9057911,94393.0,94392.0,0.1928]
[1745692546048,0.9057911,94393.0,94392.0,0.20935782]
[1745692549050,0.9057911,94393.0,94392.0,0.1928]
[1745692550743,0.5449911,94393.0,94392.0,0.1928]
[1745692551048,0.9057911,94393.0,94392.0,0.1928]
[1745692553044,0.9057911,94393.0,94392.0,0.20935782]
[1745692556047,0.9057911,94393.0,94392.0,0.1928]
[1745692561155,0.9057911,94393.0,94392.0,0.3608]
[1745692562246,0.9057911,94393.0,94392.0,0.1928]
[1745692563459,0.5449911,94393.0,94392.0,0.1928]
[1745692563662,0.9057911,94393.0,94392.0,0.1928]
[1745692564053,0.9057911,94393.0,94392.0,0.20935782]
[1745692568161,0.9057911,94393.0,94392.0,0.20935779]
[1745692569063,0.9057911,94393.0,94392.0,0.37735779]
[1745692569563,0.9057911,94393.0,94392.0,0.34555779]
[1745692570060,0.9057911,94393.0,94392.0,0.329]
[1745692570262,0.9057911,94393.0,94392.0,0.161]
[1745692571064,0.9057911,94393.0,94392.0,0.329]
[1745692571766,0.5449911,94393.0,94392.0,0.329]
[1745692571968,0.9057911,94393.0,94392.0,0.329]
[1745692572268,0.9057911,94393.0,94392.0,0.161]
[1745692580969,0.9057911,94393.0,94392.0,0.13]
[1745692582080,0.9057911,94393.0,94392.0,0.298]
[1745692588182,0.5449911,94393.0,94392.0,0.298]
[1745692588379,0.9057911,94393.0,94392.0,0.298]
[1745692591483,0.2118135,94383.0,94382.0,0.00805039]
[1745692591688,0.8326135,94383.0,94382.0,0.12]
[1745692591890,0.8326135,94383.0,94374.0,0.0618]
[1745692591891,0.2118315,94375.0,94374.0,0.0947]
[1745692592078,0.8426315,94375.0,94374.0,0.2047]
[1745692592679,0.9050315,94375.0,94374.0,0.1737]
[1745692593181,0.9050315,94375.0,94374.0,0.19026013]
[1745692593384,0.9050315,94375.0,94374.0,0.1737]
[1745692593887,0.9050315,94375.0,94374.0,0.1429]
[1745692594078,0.9050315,94375.0,94374.0,0.1449]
[1745692594473,0.9050315,94375.0,94374.0,0.1429]
[1745692595382,0.9050315,94375.0,94374.0,0.15069439]
[1745692596983,0.5442315,94375.0,94374.0,0.15069439]
[1745692597288,0.9050315,94375.0,94374.0,0.15069439]
[1745692598385,0.5442315,94375.0,94374.0,0.15069439]
[1745692598581,0.9050315,94375.0,94374.0,0.15069439]
[1745692598781,0.9050315,94375.0,94374.0,0.16725455]
[1745692601390,0.9050315,94375.0,94374.0,0.15069439]
[1745692603394,0.5442315,94375.0,94374.0,0.15069439]
[1745692603583,0.9050315,94375.0,94374.0,0.15069439]
[1745692606087,0.9050315,94375.0,94374.0,0.31869439]
[1745692617799,0.5442315,94375.0,94374.0,0.31869439]
[1745692618007,0.9050315,94375.0,94374.0,0.31869439]
[1745692619609,0.9050315,94375.0,94374.0,0.33525455]
[1745692627406,0.9050315,94375.0,94374.0,0.31869439]
[1745692627903,0.5442315,94375.0,94374.0,0.31869439]
[1745692628110,0.9050315,94375.0,94374.0,0.31869439]
[1745692629905,0.5442315,94375.0,94374.0,0.31869439]
[1745692630102,0.9050315,94375.0,94374.0,0.31869439]
[1745692631405,0.9050315,94375.0,94374.0,0.33525455]
[1745692637009,0.5442315,94375.0,94374.0,0.33525455]
[1745692637209,0.9050315,94375.0,94374.0,0.33525455]
[1745692638410,0.9050315,94375.0,94374.0,0.31869439]
[1745692639208,0.9050315,94375.0,94374.0,0.33525465]
[1745692640703,0.9050315,94375.0,94374.0,0.33525451]
[1745692644412,0.9050315,94375.0,94374.0,0.33525441]
[1745692653509,0.9050315,94375.0,94374.0,0.31869439]
[1745692657821,0.5442315,94375.0,94374.0,0.31869439]
[1745692658021,0.9050315,94375.0,94374.0,0.31869439]
[1745692658211,0.9050315,94375.0,94374.0,0.15069439]
[1745692658813,0.5442315,94375.0,94374.0,0.15069439]
[1745692659012,0.9050315,94375.0,94374.0,0.15069439]
[1745692659223,0.9050315,94375.0,94374.0,0.31869439]
[1745692660124,0.9050315,94375.0,94374.0,0.15069439]
[1745692661220,0.9050315,94375.0,94374.0,0.31869439]
[1745692661724,0.9050315,94375.0,94374.0,0.33525441]
[1745692662121,0.5442315,94375.0,94374.0,0.33525441]
[1745692662326,0.9050315,94375.0,94374.0,0.33525441]
[1745692663920,0.5442315,94375.0,94374.0,0.33525441]
[1745692664233,0.9050315,94375.0,94374.0,0.33525441]
[1745692666933,0.5442315,94375.0,94374.0,0.33525441]
[1745692667129,0.9050315,94375.0,94374.0,0.33525441]
[1745692667321,0.9050315,94375.0,94374.0,0.31869439]
[1745692667525,0.9050315,94375.0,94374.0,0.33525441]
[1745692673639,0.9050315,94375.0,94374.0,0.30235441]
[1745692673843,0.9050315,94375.0,94374.0,0.19235441]
[1745692674035,0.9050315,94375.0,94351.0,0.052971]
[1745692674036,0.2118472,94368.0,94360.0,0.0321]
[1745692674341,0.4718472,94368.0,94367.0,0.14480424]
[1745692674542,0.4718472,94368.0,94367.0,0.13688792]
[1745692674937,0.430168,94368.0,94353.0,0.16189525]
[1745692675140,0.5726786,94354.0,94353.0,0.31189525]
[1745692675337,0.8526786,94354.0,94353.0,0.31189525]
[1745692675932,0.9168786,94354.0,94353.0,0.31189525]
[1745692676343,0.9168786,94354.0,94353.0,0.31389525]
[1745692677038,0.9168786,94354.0,94353.0,0.32201109]
[1745692677738,0.9168786,94354.0,94353.0,0.16011584]
[1745692683044,0.9168786,94354.0,94353.0,0.32811584]
[1745692687441,0.9168786,94354.0,94353.0,0.39091584]
[1745692693364,0.9168786,94354.0,94353.0,0.36011584]
[1745692701051,0.5560786,94354.0,94353.0,0.36011584]
[1745692701251,0.9168786,94354.0,94353.0,0.36011584]
[1745692702751,0.5560786,94354.0,94353.0,0.36011584]
[1745692702956,0.9168786,94354.0,94353.0,0.36011584]
[1745692708651,0.5560786,94354.0,94353.0,0.36011584]
[1745692708855,0.9168786,94354.0,94353.0,0.36011584]
[1745692710050,0.9168786,94354.0,94353.0,0.57199674]
[1745692710051,0.28,94354.0,94353.0,0.57199674]
[1745692710250,0.28,94354.0,94353.0,0.58767933]
[1745692710951,0.4918786,94354.0,94353.0,0.58767933]
[1745692711151,0.4918786,94354.0,94353.0,0.57199674]
[1745692711353,0.4918786,94354.0,94353.0,0.58845331]
[1745692712954,0.4918786,94354.0,94353.0,0.58843494]
[1745692714765,0.4921286,94354.0,94353.0,0.58855935]
[1745692715262,0.4921286,94354.0,94353.0,0.58854362]
[1745692716852,0.4921286,94354.0,94353.0,0.57199674]
[1745692717052,0.4921286,94354.0,94353.0,0.58854205]
[1745692718463,0.4921286,94354.0,94353.0,0.58851435]
[1745692722062,0.4921286,94354.0,94353.0,0.58839618]
[1745692725763,0.4921286,94354.0,94353.0,0.58844715]
[1745692729374,0.4921286,94354.0,94353.0,0.58844743]
[1745692729674,0.5237286,94354.0,94353.0,0.58844743]
[1745692732874,0.5237286,94354.0,94353.0,0.58845255]
[1745692736181,0.5237286,94354.0,94353.0,0.58846074]
[1745692742977,0.5237286,94354.0,94353.0,0.58844718]
[1745692745076,0.5237286,94354.0,94353.0,0.42044718]
[1745692746083,0.5237286,94354.0,94353.0,0.58844718]
[1745692748378,0.5237286,94354.0,94353.0,0.58847609]
[1745692750078,0.5237286,94354.0,94353.0,0.42052315]
[1745692750789,0.5237286,94354.0,94353.0,0.17664225]
[1745692750985,0.8845286,94354.0,94353.0,0.17664225]
[1745692751291,0.2119033,94343.0,94342.0,0.06462475]
[1745692751489,0.8127033,94343.0,94342.0,0.06462475]
[1745692752088,0.8127033,94343.0,94324.0,0.32298694]
[1745692752089,0.0529789,94338.0,94324.0,0.32298694]
[1745692752284,0.5727303,94331.0,94330.0,0.32074589]
[1745692752485,0.8327303,94331.0,94330.0,0.31915578]
[1745692753082,1.0960303,94331.0,94330.0,0.31915578]
[1745692753286,1.0960303,94331.0,94330.0,0.32698106]
[1745692753496,0.2119482,94323.0,94322.0,0.21623808]
[1745692753691,0.8527482,94323.0,94322.0,0.29623808]
[1745692754289,1.0207482,94323.0,94322.0,0.29623808]
[1745692754496,1.0829482,94323.0,94322.0,0.29623808]
[1745692754887,1.0829482,94323.0,94322.0,0.29823808]
[1745692755300,1.0829482,94323.0,94322.0,0.30607847]
[1745692757191,0.9149482,94323.0,94322.0,0.30607847]
[1745692758702,0.9149482,94323.0,94322.0,0.08984039]
[1745692770104,0.9149482,94323.0,94322.0,0.25784039]
[1745692771107,0.9149482,94323.0,94322.0,0.08984039]
[1745692772207,0.9149482,94323.0,94322.0,0.25784039]
[1745692772507,0.5541482,94323.0,94322.0,0.25784039]
[1745692772803,0.9149482,94323.0,94322.0,0.25784039]
[1745692773604,0.4919482,94323.0,94322.0,0.25784039]
[1745692773897,0.4919482,94323.0,94322.0,0.46979089]
[1745692774102,0.28,94323.0,94322.0,0.46979089]
[1745692774498,0.4919482,94323.0,94322.0,0.46979089]
[1745692774701,0.4919482,94323.0,94322.0,0.53159089]
[1745692778406,0.4919482,94323.0,94322.0,0.31964039]
[1745692782903,0.8527482,94323.0,94322.0,0.31964039]
[1745692784103,0.4919482,94323.0,94322.0,0.31964039]
[1745692785105,0.8527482,94323.0,94322.0,0.31964039]
[1745692786208,0.4919482,94323.0,94322.0,0.31964039]
[1745692786609,0.4919482,94323.0,94322.0,0.53159089]
[1745692801216,0.5238482,94323.0,94322.0,0.53159089]
[1745692802624,0.5238482,94323.0,94322.0,0.54779605]
[1745692804431,0.5238482,94323.0,94322.0,0.53159089]
[1745692809629,0.5238482,94323.0,94322.0,0.52805289]
[1745692811427,0.5238482,94323.0,94322.0,0.54430668]
[1745692813030,0.5238482,94323.0,94322.0,0.51330668]
[1745692813438,0.5238482,94323.0,94322.0,0.51321842]
[1745692817137,0.5238482,94323.0,94322.0,0.51321238]
[1745692819432,0.5238482,94323.0,94322.0,0.49705289]
[1745692819633,0.5238482,94323.0,94322.0,0.51322823]
[1745692822433,0.5238482,94323.0,94322.0,0.2705087]
[1745692825034,0.5238482,94323.0,94322.0,0.4824592]
[1745692825734,0.5238482,94323.0,94322.0,0.46625289]
[1745692826525,0.5238482,94323.0,94322.0,0.48219908]
[1745692829439,0.5238482,94323.0,94322.0,0.48217222]
[1745692833442,0.5238482,94323.0,94322.0,0.46625289]
[1745692838541,0.5238482,94323.0,94322.0,0.49915289]
[1745692844549,0.5238482,94323.0,94322.0,0.51482445]
[1745692845548,0.5238482,94323.0,94322.0,0.49915289]
[1745692846544,0.5238482,94323.0,94322.0,0.51484252]
[1745692850652,0.5238482,94323.0,94322.0,0.49915289]
[1745692851453,0.5238482,94323.0,94322.0,0.49715289]
[1745692851647,0.5238482,94323.0,94322.0,0.49915289]
[1745692859146,0.5238482,94323.0,94322.0,0.28720239]
[1745692859451,0.5238482,94323.0,94322.0,0.49915289]
[1745692864761,0.5238482,94323.0,94322.0,0.51486187]
[1745692866363,0.5238482,94323.0,94322.0,0.514877]
[1745692866963,0.5238482,94323.0,94322.0,0.481977]
[1745692867659,0.5238482,94323.0,94322.0,0.46625289]
[1745692868261,0.5238482,94323.0,94322.0,0.25430239]
[1745692869863,0.5238482,94323.0,94322.0,0.46625289]
[1745692878457,0.5238482,94323.0,94322.0,0.25430239]
[1745692879057,0.6298682,94323.0,94322.0,0.25430239]
[1745692879265,0.7978682,94323.0,94322.0,0.08630239]
[1745692885168,0.211973,94312.0,94311.0,0.0307]
[1745692885469,0.471973,94312.0,94311.0,0.18878712]
[1745692885862,0.534973,94312.0,94311.0,0.18878712]